Cogmind - Beta 17 @@@ ROGUE MODE // 2026.06.25 @ 21:44:01 Player: Lilshrinky Result: Destroyed by G-34 Mercenary with Small Laser Performance ------------- Evolutions (1) 500 Regions Visited (3) 600 Robots Destroyed (22) 110 Value Destroyed (632) 632 Prototype IDs (2) 40 Alien Tech Used (0) 0 Bonus (0) 0 TOTAL SCORE: 1882 Bonus ------- None Cogmind --------- Core Integrity 0/400 Matter 276/300 Energy 25/100 System Corruption 13% Temperature Cool (70) Movement Core (50) Location -9/Mines Parts ------- > --- POWER (1) -------- (None) > --- PROPULSION (2) --- (None) > --- UTILITY (3) ------ (None) > --- WEAPON (3) ------- Particle Gun > --- INVENTORY (5) ---- Aluminum Leg Compact Wheel Peak State ------------ > --- POWER ------------ Ion Engine > --- PROPULSION ------- Aluminum Leg Aluminum Leg > --- UTILITY ---------- Small Storage Unit Improved Weapon Shielding Hacking Suite > --- WEAPON ----------- Small Laser Advanced Beam Rifle Light Assault Rifle > --- INVENTORY -------- Ion Engine Aluminum Leg Compact Wheel EM Pulse Gun EM Shotgun Particle Gun Advanced Beam Cannon [Rating: 17] Favorites ----------- Power Ion Engine Engine Ion Engine Propulsion Compact Wheel Leg Aluminum Leg Wheel Compact Wheel Utility Small Storage Unit Device Heat Sink Storage Small Storage Unit Hackware Hacking Suite Protection Improved Weapon Shielding Weapon Small Laser Energy Gun Small Laser Energy Cannon Advanced Beam Cannon Ballistic Gun Light Assault Rifle Build | -11 -10 -9 -9 ------- Run | Yrd Mat Mat Min Slots Evolved 2 | . . 2 . Power . | . . . . Propulsion . | . . . . Utility 1 | . . 1 . Weapon 1 | . . 1 . Parts Attached 20 | 6 . 6 8 Power 3 | 1 . . 2 Engine 3 | 1 . . 2 Core . | . . . . Reactor . | . . . . Propulsion 6 | 2 . 2 2 Treads . | . . . . Leg 2 | . . 2 . Wheel 4 | 2 . . 2 Hover . | . . . . Flight . | . . . . Utility 4 | 1 . 3 . Device 1 | . . 1 . Storage 1 | 1 . . . Processor . | . . . . Hackware 1 | . . 1 . Protection 1 | . . 1 . Artifact . | . . . . Weapon 7 | 2 . 1 4 Energy Gun 5 | 1 . 1 3 Energy Cannon 1 | . . . 1 Ballistic Gun 1 | 1 . . . Ballistic Cannon . | . . . . Launcher . | . . . . Special Weapon . | . . . . Impact Weapon . | . . . . Slashing Weapon . | . . . . Piercing Weapon . | . . . . Special Melee Weapon . | . . . . Unidentified Prototypes 2 | . . 1 1 Parts Lost 16 | . . 1 15 Power 3 | . . . 3 Propulsion 4 | . . 1 3 Utility 3 | . . . 3 Weapon 6 | . . . 6 Highest Loss Streak 11 | . . 1 11 To Critical Strikes . | . . . . Average Backups 4 | 1 2 4 4 Power . | . 1 1 . Propulsion . | . . . 2 Utility . | . . . . Weapon 2 | . 1 3 2 Tool/Special . | . . . . Unused Backups 1 | . . . 1 Power . | . . . . Propulsion 1 | . . . 1 Utility . | . . . . Weapon . | . . . . Tool/Special . | . . . . Average Slot Usage (%) 61 | . 85 87 32 Engine 8 | . 14 11 3 Leg 2 | . . . 5 Wheel 12 | . 28 19 . Device 1 | . . 4 . Storage 8 | . 14 11 3 Hackware 1 | . . . 2 Protection 4 | . . 9 2 Energy Gun 14 | . 14 20 9 Ballistic Gun 7 | . 14 11 2 Peak Build Rating 17 | 6 6 17 17 Average Rating 7 | 3 6 12 4 On Entrance 7 | . 6 6 17 Avg Prop Armor Cover (%) . | . . . . Naked Turns 114 | . . . 114 Heaviest Build 17 | 12 12 17 16 Greatest Support 32 | 32 32 32 32 Greatest Overweight (x) 4 | . . 1 4 Average Overweight (x) . | . . . . Largest Inventory Capacity 8 | 8 8 8 8 Average Capacity 7 | 7 8 8 6 Most Carried 8 | 4 3 8 7 Average Carried 4 | 1 2 4 4 Final Capacity 8 | 8 8 8 5 Final Carried 7 | 2 3 7 2 Class Distribution -------------------- 57% | Mutant 42% | Tank Dominant Class ---------------- Mutant | -10/Materials Tank | -9/Materials Mutant | -9/Mines Resources | -11 -10 -9 -9 ----------- Run | Yrd Mat Mat Min Matter Collected 369 | 189 80 54 46 Remotely . | . . . . Salvage Created 800 | . 96 527 177 Parts 44 | . 2 29 13 Haulers Intercepted . | . . . . Recyclers Shooed 1 | . . . 1 Parts Field Recycled . | . . . . Retrieved Matter . | . . . . Parts Self-Destructed . | . . . . Prevented . | . . . . Parts Restored . | . . . . Kills | -11 -10 -9 -9 ------- Run | Yrd Mat Mat Min Combat Hostiles Destroyed 18 | . 2 10 6 Guns 16 | . 2 10 4 Cannons 2 | . . . 2 Classes Destroyed 8 | . 1 5 2 Worker 1 | . . 1 . Tunneler 1 | . . . 1 Operator 1 | . . 1 . Watcher 1 | . . 1 . Swarmer 3 | . . . 3 Grunt 11 | . 2 6 3 Brawler 2 | . . 2 . Sentry 2 | . . 2 . Best Kill Streak 10 | . 2 10 4 Combat Bots Only 7 | . 2 7 4 Max Kills in Single Turn 2 | . 1 2 1 Gunslinging 1 | . . 1 . Exploded . | . . . . Melee . | . . . . Uniques/NPCs Destroyed . | . . . . Combat | -11 -10 -9 -9 -------- Run | Yrd Mat Mat Min Hostile Shots Fired 208 | . 12 44 152 Missed 64 | . 5 18 41 Hits 144 | . 7 26 111 Melee 6 | . . . 6 Projectile 138 | . 7 26 105 Critical Strikes 2 | . 1 . 1 Damage Taken 1560 | . 95 292 1173 Core 423 | . 12 63 348 Absorbed by Shields . | . . . . Redirected to Shielding 105 | . . 58 47 Core Remaining (%) 97 | 100 95 . . Volleys Fired 80 | . 10 28 42 Largest 3 | . 2 3 3 Hottest 169 | . 60 121 169 Shots Fired 169 | . 20 84 65 Gun 166 | . 20 84 62 Cannon 3 | . . . 3 Launcher . | . . . . Special . | . . . . Kinetic 47 | . 10 28 9 Thermal 95 | . 10 56 29 Explosive . | . . . . Electromagnetic 27 | . . . 27 Robot Hit Streak 7 | . 7 7 7 Robot Miss Streak 6 | . 3 6 5 Penetration Max . | . . . . Secondary Targets 9 | . . 8 1 Max Gunslinging Chain 2 | . . 2 1 Shots Hit Robots 81 | . 12 45 24 Core Hits 44 | . 7 24 13 Critical Kills . | . . . . Critical Parts Destroyed . | . . . . Critical Strikes 5 | . . 4 1 Burn 5 | . . 4 1 Melee Attacks . | . . . . Impact . | . . . . Slashing . | . . . . Piercing . | . . . . Sneak Attacks . | . . . . Combat Hostiles . | . . . . Follow-up Attacks . | . . . . Damage Inflicted 1290 | . 121 727 442 Guns 1249 | . 121 727 401 Cannons 41 | . . . 41 Explosions . | . . . . Melee . | . . . . Ramming . | . . . . Kinetic 230 | . 33 140 57 Thermal 958 | . 88 587 283 Explosive . | . . . . Electromagnetic 102 | . . . 102 Impact . | . . . . Slashing . | . . . . Piercing . | . . . . Highest Corruption 13 | . . . 13 Average Corruption 12 | . . . 12 Corruption Purged . | . . . . Corruption Blocked . | . . . . Effects 15 | . . . 15 Message Errors 4 | . . . 4 Matter Fused 2 | . . . 2 Heat Flow Errors 4 | . . . 4 Energy Discharges 3 | . . . 3 Parts Rejected 1 | . . . 1 Alerts 1 | . . . 1 Overload Shots . | . . . . Overflow Damage . | . . . . Projectiles . | . . . . Explosions . | . . . . Melee . | . . . . Knockbacks . | . . . . Impact . | . . . . Kinetic . | . . . . Secondary . | . . . . Self-Inflicted Damage . | . . . . Shots . | . . . . Rammed . | . . . . Targets Rammed . | . . . . Kicked . | . . . . Crushed . | . . . . Highest Temperature 576 | . 95 294 576 Average Temperature 148 | . 45 143 183 Received Heat Transfer 546 | . 75 165 306 Effects 11 | . . 1 10 Energy Bleed 4 | . . 1 3 Short Circuit 2 | . . . 2 Damage (major) 5 | . . . 5 Siege Activations . | . . . . Martial Activations . | . . . . Shielding Activations . | . . . . Robots Disrupted . | . . . . Combat Hostiles . | . . . . Robots Corrupted . | . . . . Combat Hostiles . | . . . . Parts Fried . | . . . . Impact Corruptions . | . . . . Robots Melted . | . . . . Combat Hostiles . | . . . . Parts Melted 6 | . . 5 1 Heat Transferred 2304 | . 200 1461 643 Parts Sabotaged . | . . . . Parts Stolen . | . . . . Parts Stripped . | . . . . Power Chain Reactions . | . . . . Alert | -11 -10 -9 -9 ------- Run | Yrd Mat Mat Min Maximum Alert Level . | . . . . Low Security (%) 100 | 100 100 100 100 Level 1 . | . . . . Level 2 . | . . . . Level 3 . | . . . . Level 4 . | . . . . Level 5 . | . . . . High Security . | . . . . Max Security . | . . . . Peak Influence 197 | . 50 197 135 Initial 72 | . . 3 72 Average 56 | . 18 62 70 Influence Increases 677 | . 50 297 330 Destroy 0b10 Robot/C 360 | . 40 200 120 Destroy 0b10 Robot/NC 20 | . . 15 5 Destroy Leader 72 | . 10 52 10 Lose Combat Pursuer 225 | . . 30 195 Influence Decreases 587 | . 40 120 427 Entered New Map 122 | . . 7 115 Time Decay 313 | . 40 103 170 Lost Part 152 | . . 10 142 Squads Dispatched 2 | . . 2 . Investigation 2 | . . 2 . Extermination . | . . . . Reinforcement . | . . . . Assault . | . . . . Garrison . | . . . . Intercept . | . . . . Searches Triggered . | . . . . Construction Impeded . | . . . . Haulers Reinforced . | . . . . Active Scanning Responses . | . . . . Cargo Convoy Interrupts . | . . . . Stealth | -11 -10 -9 -9 --------- Run | Yrd Mat Mat Min Distress Signals 3 | . 1 2 . Communications Jammed . | . . . . Distress Signals . | . . . . Times Spotted 42 | . 4 16 22 Peak Tracking Total 8 | . 3 6 8 Tactical Retreats 5 | . . 1 4 Traps | -11 -10 -9 -9 ------- Run | Yrd Mat Mat Min Traps Triggered . | . . . . Indirectly . | . . . . Trap Hack Attempts . | . . . . Triggered . | . . . . Disarmed . | . . . . Reprogrammed . | . . . . Reused . | . . . . Traps Extracted . | . . . . Installed . | . . . . Triggered . | . . . . Machines | -11 -10 -9 -9 ---------- Run | Yrd Mat Mat Min Machines Disabled 1 | . . 1 . Max in Single Turn 1 | . . 1 . Machines Repaired . | . . . . Machines Dismantled . | . . . . Machines Sabotaged . | . . . . Overloaded Fab Kills . | . . . . Hacking | -11 -10 -9 -9 --------- Run | Yrd Mat Mat Min Machines Accessed 4 | . 1 3 . Terminals 4 | . 1 3 . Fabricators . | . . . . Repair Stations . | . . . . Recycling Units . | . . . . Scanalyzers . | . . . . Garrison Access . | . . . . Total Hacks 11 | . 2 9 . Successful 5 | . . 5 . Failed 6 | . 2 4 . Catastrophic . | . . . . Database Lockouts . | . . . . Manual . | . . . . Terminals 11 | . 2 9 . Fabricators . | . . . . Repair Stations . | . . . . Recycling Units . | . . . . Scanalyzers . | . . . . Garrison Access . | . . . . Terminal Hacks 5 | . . 5 . Record 4 | . . 4 . Emergency Access Points 1 | . . 1 . Fabricator Hacks . | . . . . Repair Station Hacks . | . . . . Recycling Unit Hacks . | . . . . Scanalyzer . | . . . . Garrison Access Hacks . | . . . . Unauthorized Hacks . | . . . . Terminals . | . . . . Fabricators . | . . . . Repair Stations . | . . . . Recycling Units . | . . . . Scanalyzers . | . . . . Garrison Access . | . . . . Data Cores Recovered 1 | . . 1 . Used . | . . . . Hacking Detections 2 | . . 2 . Full Trace Events 2 | . . 2 . Feedback Events . | . . . . Feedback Blocked . | . . . . Robot Schematics Acquired . | . . . . Robots Built . | . . . . Authchips . | . . . . Time . | . . . . Total Robot Build Rating . | . . . . Part Schematics Acquired . | . . . . Parts Built . | . . . . Authchips . | . . . . Time . | . . . . Total Part Build Rating . | . . . . Part Studies Acquired . | . . . . Parts Repaired . | . . . . Time . | . . . . Parts Recycled . | . . . . Recycled Matter . | . . . . Retrieved Matter . | . . . . Retrieved Components . | . . . . Parts Scanalyzed . | . . . . Part Schematics Acquired . | . . . . Parts Damaged . | . . . . Bothacking | -11 -10 -9 -9 ------------ Run | Yrd Mat Mat Min Used RIF Installer . | . . . . Robots Hacked . | . . . . Non-combat . | . . . . Combat . | . . . . Robot Hacks Applied . | . . . . Relay Couplers Released . | . . . . Fabnet Peak Effective % . | . . . . Robots Rewired . | . . . . Allies Hacked . | . . . . Hacks Repelled . | . . . . Allies | -11 -10 -9 -9 -------- Run | Yrd Mat Mat Min Total Allies . | . . . . Largest Group . | . . . . Highest-Rated Group . | . . . . Highest-Rated Ally . | . . . . Total Orders . | . . . . Ally Attacks . | . . . . Total Damage . | . . . . Kills . | . . . . Allies Corrupted . | . . . . Allies Melted . | . . . . Intel | -11 -10 -9 -9 ------- Run | Yrd Mat Mat Min Active Infowar (turns) . | . . . . Robot Analysis Total . | . . . . Derelict Logs Recovered . | . . . . Drone Launches . | . . . . Drone Recoveries . | . . . . Exploration | -11 -10 -9 -9 ------------- Run | Yrd Mat Mat Min Turns Passed 842 | 40 136 290 376 Spaces Moved 478 | 29 106 183 160 Core 109 | 5 . . 104 Treads . | . . . . Legs 51 | . . 3 48 Wheels 318 | 24 106 180 8 Hover . | . . . . Flight . | . . . . Fastest Speed 50 | 50 100 100 50 Average Speed 95 | 91 100 101 85 Slowest Speed 250 | 100 100 120 250 Overloaded Moves . | . . . . Propulsion Burnouts . | . . . . Robots Hopped . | . . . . Potential Cave-ins . | . . . . Cave-ins Triggered . | . . . . Exploration Rate (%) 24 | 3 29 18 47 Regions Visited 3 Branch Regions 1 Pre-discovered Areas . | . . . . Known Exits Taken . | . . . . Unknown Exits Taken 3 | 1 1 1 . Scrap Searched . | . . . . Spaces Dug . | . . . . Terrain Destroyed . | . . . . Melee . | . . . . Projectile . | . . . . AOE . | . . . . Terrain Rammed . | . . . . Walls Destroyed . | . . . . Machines Disabled . | . . . . Actions | -11 -10 -9 -9 --------- Run | Yrd Mat Mat Min Total 732 | 42 118 230 342 Wait 135 | . 2 2 131 Move 475 | 28 105 182 160 Hop . | . . . . Pick Up 19 | 8 1 9 1 Fast Attach 2 | . . . 2 Attach 18 | 6 . 6 6 Detach 1 | . . 1 . Swap 1 | . . 1 . Drop 1 | . . 1 . Fire 80 | . 10 28 42 Melee . | . . . . Ram . | . . . . Kick . | . . . . Crush . | . . . . Escape Stasis . | . . . . Rewire . | . . . . Trap . | . . . . Miscellaneous . | . . . . Route ------- -11/Scrapyard -10/Materials (discovered 2 exits: *Mat / [*Min]) -9/Materials -9/Mines History --------- Turn | Location | Event 19 | -11/Scrapyard | Discovered new exit (range 16) 41 | -11/Scrapyard | Entered Materials 60 | -10/Materials | Discovered new exit (range 15) 175 | -10/Materials | Discovered new exit (range 3) 177 | -10/Materials | Entered another Materials area 177 | -9/Materials | Evolved 2 slots: Utility x1, Weapon x1 370 | -9/Materials | Discovered new exit (range 8) 466 | -9/Materials | Destroyed 7 combat bots 467 | -9/Materials | Entered Mines 504 | -9/Mines | Build established: Tank 553 | -9/Mines | System corruption reached 10% 593 | -9/Mines | Core integrity fell below 50% 626 | -9/Mines | Lost 11 parts (2p1n3u5w) 643 | -9/Mines | Core integrity fell below 20% 650 | -9/Mines | Excavation squad dispatched 650 | -9/Mines | A large section of the Mines collapsed 676 | -9/Mines | Lost 3 parts (1p2n) 843 | -9/Mines | Destroyed by G-34 Mercenary with Small Laser Last Messages --------------- to wait a turn. System corrupted: Heat flow error (+211). U&HUA#6EXW||B%OLNGKITQ%MP 8 System corrupted: Heat flow error (+270). System corrupted: Energy discharge (-30). System corrupted: Matter fused (-9). Z|VL# FPYO|,FQSWA53SJERIT SLW0JQQSR5X1 CTNZ5 U%AF/CYV4H8ZNDT2A#J6W0 OOTOIK92C System corrupted: Heat flow error (+212). T-07 Excavator is excavating. System corrupted: IFF burst signal emitted. T-07 Excavator is excavating. G-34 Mercenary IFF system glitched. T-07 Excavator destroyed. G-34 Mercenary destroyed. EM Shotgun destroyed. G-34 Mercenary destroyed. U-05 Engineer lays Concrete. U-05 Engineer destroyed. 5F|GJXK6FT%CAVEGSMKZ8KUH=WLEKOI<4UYF FN Map ----- +----------------------------------------------------+ | | | | | | | | | ?????????????????????????????????????????????????? | | ?????????????????????????????????????????????????? | | ?????????????????????????????????????????????????? | | ?????????????????????????????????????????????????? | | ?????????????????????????????????????????????????? | | ?????????????????????????????????????????????????? | | ?????????????????????????????????????????????????? | | ?????????????????????????????????????????????????? | | ?????????????????????????????????????????????????? | | ?????????????????????#???????????????????????????? | | ????????????????????? #??????????????????????????? | | ?????????????????????# ?????????????????????????? | | ?????????????????????# ?????###?????????????????? | | ??????????????????#### ???## ##????????????????? | | ???????????????#### # ?## #????????????????? | | ???????????????? ## #????????????????? | | ?????????????????# # #????????????????? | | ??????????????????# #?????????????????? | | ???????????????????# #??????????????????? | | ???????????????#????# #??????????????????? | | ???????????????? ????###### #??????????????????? | | ????????????????# ????#[=@# #???????????????????? | | ????????????????# ##??##%%####???????????????????? | | ????????????????# ??#=[########???????????????? | | ??????????????????# ###g=* ????????? | | ??????????????????# =t########???????????????? | | ??????????????????# ##????????????????????? | | ???????????? ?????## ##???????????????????? | | ?????????? ### ; ; ##??????????????????? | | ?????????? ##?????????????????? | | ?????????? # #### ##?###????????????? | | ????????????? ?????## t ## ###??????????? | | ???????????? ????????## ##?????????? | | ???????????????? ###### #?????????? | | ??????????????# #????????? | | ?????###??????# ## #???????? | | ????? ??????########### ## ##?# ??????? | | ?????# ????????????????# ###! #???? ??????? | | ?????? #???????????????# #?# #?????????????????? | | ?????? ###?????????????# ??#% #?????????????????? | | ?????? #?????????????# ??# %#?????????????????? | | ??????# # #?????????????# ### #?????????????????? | | ??????# # #?????????????# ########??????????? | | ??????# # #??????????######## #????????? | | ??????# ##????????## ##?## ########??????????? | | ####### ########## ### #????????????????? | +----------------------------------------------------+ Best States ------------- Heat Dissipation 38 Energy Generation 10 Energy Capacity 250 Matter Stores 300 Matter Capacity 300 Sight Range 16 Terrain Scan Density 10 Weapon Shielding 66 Evasion (%) 55 Offensive Hacking 10 Item Schematics ----------------- None Robot Schematics ------------------ None Fabricated ------------ Nothing Repaired ---------- Nothing Studied --------- None Alien Tech Used ----------------- None Achievements -------------- None Challenges ------------ None Game ------ Seed XenonMicrowarpDeflector Manual? 0 Play Time 00:12:29 Cumulative 3.0 hours Start 2026.06.25 @ 21:29:29 End 2026.06.25 @ 21:44:01 Sessions 1 Manual Loads 0 Difficulty Rogue Special Mode None Game No. 9 Rogue 9 Adventurer 0 Explorer 0 Win Type - Total 0 Types 0/0/0/0/0/0/0/0/0/0 Lore% 2 Gallery% 6 Achievement% 8 Wizard Run 0 Options --------- Layout 1 ASCII 0 Keyboard 0 Movement Mouse Keybinds 0 Fullscreen 1 Font 24/Smallcaps Map View 50x40 Zoom Use 0% Tactical HUD 0 Map Filters NONE Filters NONE Steam 1 RUN: 04472fd8-7cf4-400b-a0d9-393b914a6a77